bitfinex-derivatives/quotes_BTCF0:USTF0_20210404
["timestamp","ask_amount","ask_price","bid_price","bid_amount"]
[1617559453827,0.36268981,58228.0,58227.0,0.27]
[1617559454026,0.36268981,58228.0,58227.0,1.06545732]
[1617559454444,0.36268981,58228.0,58227.0,1.125981]
[1617559455529,0.36268981,58228.0,58227.0,1.06545732]
[1617559456331,0.46994636,58228.0,58227.0,1.06545732]
[1617559456730,0.54237445,58228.0,58227.0,1.06545732]
[1617559458436,0.54237445,58228.0,58227.0,0.62795579]
[1617559458437,0.98570434,58228.0,58227.0,0.62795579]
[1617559459333,1.13644434,58228.0,58227.0,0.62795579]
[1617559473251,2.13644434,58228.0,58227.0,0.62795579]
[1617559474952,2.18854434,58228.0,58227.0,0.62795579]
[1617559475153,2.13644434,58228.0,58227.0,0.62795579]
[1617559478261,2.13644434,58228.0,58227.0,0.27]
[1617559478663,2.13644434,58228.0,58226.0,0.35823718]
[1617559479065,1.25799655,58228.0,58227.0,0.27]
[1617559479261,0.25799655,58228.0,58227.0,0.27]
[1617559479464,1.29860739,58228.0,58227.0,0.33053424]
[1617559479963,1.06414447,58228.0,58227.0,0.33053424]
[1617559480363,1.13100986,58228.0,58227.0,0.33053424]
[1617559481465,2.13100986,58228.0,58227.0,0.33053424]
[1617559482965,2.63482106,58228.0,58227.0,0.27]
[1617559483367,2.63482106,58228.0,58226.0,0.01]
[1617559483766,1.37679866,58227.0,58225.0,0.01]
[1617559484167,0.745601,58226.0,58225.0,0.35829417]
[1617559484567,0.745601,58226.0,58225.0,0.62829417]
[1617559484767,1.745601,58226.0,58225.0,0.62829417]
[1617559486870,0.745601,58226.0,58225.0,0.62829417]
[1617559487269,1.0,58227.0,58225.0,0.62829417]
[1617559487270,1.0,58227.0,58225.0,0.27]
[1617559487471,0.25799655,58228.0,58225.0,0.27]
[1617559487671,1.0,58227.0,58217.0,0.27]
[1617559487872,1.0,58227.0,58222.0,0.43779112]
[1617559487873,0.44335312,58226.0,58222.0,0.43779112]
[1617559488172,0.4433473,58223.0,58221.0,0.43782753]
[1617559488572,0.10725655,58222.0,58221.0,0.43782753]
[1617559488971,0.10725655,58222.0,58221.0,0.70782753]
[1617559492181,3.55175655,58222.0,58221.0,0.70782753]
[1617559492390,3.55175655,58222.0,58221.0,0.27]
[1617559492391,3.99514128,58222.0,58221.0,0.27]
[1617559492787,4.22808464,58222.0,58219.0,0.43808402]
[1617559493176,3.55175655,58222.0,58221.0,0.27]
[1617559493376,3.55175655,58222.0,58220.0,0.01]
[1617559493575,3.9951539,58222.0,58219.0,0.43808402]
[1617559493775,1.0,58221.0,58219.0,0.43808402]
[1617559493975,1.0,58221.0,58220.0,0.27]
[1617559493976,1.23294967,58221.0,58220.0,0.27]
[1617559494175,0.23294967,58221.0,58220.0,0.27]
[1617559494375,0.67634834,58221.0,58219.0,0.01]
[1617559495178,0.4433988,58220.0,58219.0,0.01]
[1617559495576,0.4433988,58220.0,58219.0,0.44825524]
[1617559495977,0.4433946,58221.0,58219.0,0.43825524]
[1617559496177,1.0,58220.0,58219.0,0.43825524]
[1617559496377,0.4433946,58221.0,58220.0,0.01]
[1617559496778,0.4433946,58221.0,58219.0,0.69825524]
[1617559496980,0.4433946,58221.0,58220.0,0.27]
[1617559497379,3.55175655,58222.0,58220.0,0.27]
[1617559497380,3.99514261,58222.0,58220.0,0.70816238]
[1617559497782,3.99514261,58222.0,58221.0,0.43807175]
[1617559497783,3.55175655,58222.0,58221.0,0.43807175]
[1617559498079,3.55175655,58222.0,58221.0,0.69807175]
[1617559499987,4.55175655,58222.0,58221.0,0.69807175]
[1617559500686,3.55175655,58222.0,58221.0,0.69807175]
[1617559505691,0.10725655,58222.0,58221.0,0.69807175]
[1617559506491,0.44332866,58227.0,58221.0,0.69807175]
[1617559506692,0.44331722,58228.0,58226.0,2.81033655]
[1617559507093,0.44331722,58228.0,58227.0,0.33053147]
[1617559507294,0.10725655,58232.0,58227.0,0.76896871]
[1617559507295,0.44330219,58230.0,58227.0,0.76896871]
[1617559507794,0.44327209,58231.0,58229.0,0.43834541]
[1617559508195,0.44327209,58231.0,58228.0,0.06053032]
[1617559508196,0.10725655,58232.0,58230.0,0.70826687]
[1617559508598,0.10725655,58232.0,58231.0,0.4987672]
[1617559508896,0.10725655,58232.0,58231.0,0.7687672]
[1617559509096,0.10725655,58232.0,58231.0,0.70823774]
[1617559509296,0.10725655,58232.0,58231.0,0.43823774]
[1617559509496,0.10725655,58232.0,58231.0,0.85723516]
[1617559509697,0.10725655,58232.0,58231.0,1.12723516]
[1617559509896,0.10725655,58232.0,58231.0,1.06670743]
[1617559510297,0.10725655,58232.0,58231.0,1.12723504]
[1617559516509,0.10725655,58232.0,58231.0,0.6889973]
[1617559517609,0.10725655,58232.0,58231.0,1.12705509]
[1617559521512,0.27128655,58232.0,58231.0,1.12705509]
[1617559521713,1.27128655,58232.0,58231.0,1.12705509]
[1617559522112,1.27128655,58232.0,58231.0,0.6889973]
[1617559522113,1.71451877,58232.0,58231.0,0.6889973]
[1617559525316,0.71451877,58232.0,58231.0,0.6889973]
[1617559526319,1.71451877,58232.0,58231.0,0.6889973]
[1617559527819,0.71451877,58232.0,58231.0,0.6889973]
[1617559528219,0.27128655,58232.0,58231.0,0.6889973]
[1617559530219,0.71441928,58232.0,58231.0,0.6889973]
[1617559535129,0.55038928,58232.0,58231.0,0.8514373]
[1617559535530,0.10725655,58232.0,58231.0,0.8514373]
[1617559536229,0.10725655,58232.0,58231.0,1.28929352]
[1617559541737,0.10725655,58232.0,58231.0,0.8514373]
[1617559541934,0.10725655,58232.0,58231.0,0.6889973]
[1617559549547,0.44278044,58233.0,58231.0,0.6889973]
[1617559549950,0.44278044,58233.0,58232.0,0.41887094]
[1617559550348,0.44278044,58233.0,58232.0,0.68887094]
[1617559551152,0.55003699,58233.0,58232.0,0.68887094]
[1617559554360,0.55003699,58233.0,58232.0,0.33052723]
[1617559558767,0.55003699,58233.0,58232.0,0.68882967]
[1617559559568,0.55003699,58233.0,58232.0,0.33052723]
[1617559559968,0.55003699,58233.0,58232.0,0.27]
[1617559560367,0.55003699,58233.0,58231.0,0.01]
[1617559560769,0.55003699,58233.0,58232.0,0.26]
[1617559560968,0.55003699,58233.0,58231.0,0.27]
[1617559561171,0.55003699,58233.0,58232.0,0.35821706]
[1617559561369,0.55003699,58233.0,58232.0,0.62821706]
[1617559561569,0.10725655,58233.0,58232.0,0.35821706]
[1617559561968,0.10725655,58233.0,58232.0,0.62821706]
[1617559563168,0.10725655,58233.0,58232.0,0.73547361]
[1617559566074,0.10725655,58233.0,58232.0,0.86273361]
[1617559569380,0.10725655,58233.0,58232.0,0.73547361]
[1617559579689,0.26394655,58233.0,58232.0,0.62821706]
[1617559581993,0.70732513,58233.0,58232.0,0.62821706]
[1617559583193,0.75912513,58233.0,58232.0,0.62821706]
[1617559583393,0.70732513,58233.0,58232.0,0.62821706]
[1617559583593,1.70732513,58233.0,58232.0,0.57831706]
[1617559584194,2.21119208,58233.0,58232.0,0.27]
[1617559584596,2.21119208,58233.0,58227.0,0.01]
[1617559584995,2.21119208,58233.0,58232.0,0.26]
[1617559585196,1.26394655,58233.0,58227.0,0.27]
[1617559585596,1.26394655,58233.0,58232.0,0.27]
[1617559585597,2.36218112,58233.0,58232.0,0.27]
[1617559585796,2.36218112,58233.0,58225.0,0.70842854]
[1617559585996,1.0,58227.0,58225.0,0.70842854]
[1617559586198,1.0,58227.0,58226.0,0.27]
[1617559586397,1.0,58227.0,58225.0,0.43842854]
[1617559586599,0.38287728,58226.0,58225.0,0.43842854]
[1617559586999,0.38287728,58226.0,58225.0,0.70842854]
[1617559587198,0.49013383,58226.0,58225.0,0.70842854]
[1617559587399,0.49013383,58226.0,58225.0,0.27]
[1617559587598,1.49013383,58226.0,58225.0,0.27]
[1617559587804,1.49013383,58226.0,58219.0,0.01]
[1617559588201,1.10725655,58226.0,58225.0,0.27]
[1617559588400,1.10725655,58226.0,58218.0,0.4983753]
[1617559588401,1.10725655,58226.0,58219.0,0.27]
[1617559588599,0.10725655,58226.0,58219.0,0.27]
[1617559588802,0.10725655,58226.0,58225.0,0.27]
[1617559588803,1.10725655,58226.0,58225.0,0.27]
[1617559589002,1.10725655,58226.0,58201.0,0.6707]
[1617559589003,0.10725655,58226.0,58220.0,0.27]
[1617559589207,0.0513,58225.0,58220.0,0.231]
[1617559589407,0.10725655,58226.0,58225.0,0.26]
[1617559589600,0.10725655,58226.0,58219.0,0.27]
[1617559589799,0.10725655,58226.0,58221.0,0.01]
[1617559590000,0.10725655,58226.0,58215.0,0.01]
[1617559590201,0.62778469,58221.0,58220.0,0.27]
[1617559590401,0.12389,58221.0,58220.0,0.27]
[1617559590601,0.12389,58221.0,58216.0,0.25]
[1617559591000,1.12389,58221.0,58205.0,0.27]
[1617559591200,1.12389,58221.0,58217.0,0.25]
[1617559591601,1.12389,58221.0,58206.0,0.01]
[1617559591805,1.12389,58221.0,58218.0,0.25]
[1617559592203,1.12389,58221.0,58205.0,0.27]
[1617559592602,1.12389,58221.0,58219.0,0.27]
[1617559592802,0.12389,58221.0,58205.0,0.76746917]
[1617559593003,0.12389,58221.0,58205.0,0.27]
[1617559593204,0.12389,58221.0,58203.0,0.49760047]
[1617559593403,0.10725655,58204.0,58203.0,0.49760047]
[1617559593606,0.10725655,58204.0,58202.0,0.4977118]
[1617559593804,0.10725655,58204.0,58203.0,0.27]
[1617559594005,0.10725655,58204.0,58202.0,0.5077118]
[1617559597910,0.10725655,58204.0,58203.0,0.49763522]
[1617559598309,0.10725655,58204.0,58203.0,0.76763522]
[1617559598912,0.10725655,58204.0,58203.0,0.27]
[1617559599212,0.10725655,58204.0,58203.0,0.76755092]
[1617559599416,0.10725655,58204.0,58203.0,0.49755092]
[1617559599612,0.10725655,58204.0,58203.0,0.76755092]
[1617559599812,0.10725655,58204.0,58203.0,0.49755092]
[1617559600313,0.10725655,58204.0,58203.0,0.76755092]
[1617559601514,0.10725655,58204.0,58203.0,0.27]
[1617559601918,0.10725655,58204.0,58202.0,0.76731001]
[1617559602315,0.10725655,58204.0,58203.0,0.27]
[1617559602716,0.10725655,58204.0,58203.0,0.7672705]
[1617559603117,0.10725655,58204.0,58203.0,0.4972705]
[1617559603516,0.10725655,58204.0,58203.0,0.7672705]
[1617559606721,0.10725655,58204.0,58203.0,1.20437017]
[1617559607733,0.10725655,58204.0,58203.0,1.31165017]
[1617559608223,0.44194263,58227.0,58203.0,1.31165017]
[1617559608425,0.44194263,58227.0,58204.0,1.7]
[1617559608825,0.44191801,58230.0,58220.0,0.35691301]
[1617559609226,0.44191801,58230.0,58221.0,0.27]
[1617559609429,0.4613,58231.0,58223.0,0.46391095]
[1617559609827,0.4613,58231.0,58224.0,0.68690996]
[1617559610227,0.4613,58231.0,58225.0,0.06053004]
[1617559610626,0.4613,58231.0,58226.0,0.27]
[1617559611427,0.4613,58231.0,58225.0,0.27]
[1617559611826,0.4613,58231.0,58227.0,0.27]
[1617559612028,0.4613,58231.0,58223.0,0.10725655]
[1617559612029,0.4613,58231.0,58225.0,0.62664269]
[1617559612427,0.4613,58231.0,58228.0,0.27]
[1617559612626,0.4613,58231.0,58226.0,0.27]
[1617559613827,0.4613,58231.0,58226.0,0.62689681]
[1617559613828,0.04672802,58227.0,58226.0,0.62689681]
[1617559614227,0.04672802,58227.0,58226.0,0.35689681]
[1617559614630,0.04672802,58227.0,58226.0,0.62689681]
[1617559615029,0.04672802,58227.0,58226.0,0.27]
[1617559615330,0.04672802,58227.0,58225.0,0.35702986]
[1617559615529,0.04672802,58227.0,58226.0,0.35703482]
[1617559615730,0.04672802,58227.0,58226.0,0.62703482]
[1617559616331,0.04672802,58227.0,58226.0,0.27]
[1617559616732,0.04672802,58227.0,58225.0,0.01]
[1617559617133,0.04672802,58227.0,58226.0,0.27]
[1617559617333,0.04672802,58227.0,58225.0,0.27]
[1617559617533,0.04672802,58227.0,58224.0,0.01]
[1617559618935,0.04672802,58227.0,58224.0,0.36715105]
[1617559619737,0.04672802,58227.0,58225.0,0.35707267]
[1617559619935,0.04672802,58227.0,58225.0,0.46551267]
[1617559620136,0.04672802,58227.0,58226.0,0.62702231]
[1617559622838,0.04672802,58227.0,58226.0,0.27]
[1617559623237,0.04672802,58227.0,58225.0,0.35701948]
[1617559623637,0.04672802,58227.0,58226.0,0.27]
[1617559624742,0.04672802,58227.0,58224.0,0.62704837]
[1617559624940,0.04672802,58227.0,58225.0,0.36698388]
[1617559625140,0.04672802,58227.0,58226.0,0.26]
[1617559625340,0.04672802,58227.0,58225.0,0.35698388]
[1617559625741,0.04672802,58227.0,58226.0,0.27]
[1617559626141,0.04672802,58227.0,58224.0,0.27]
[1617559626542,0.04672802,58227.0,58226.0,0.27]
[1617559626741,0.04672802,58227.0,58224.0,0.27]
[1617559627542,0.04672802,58227.0,58217.0,0.43655415]
[1617559627543,0.04672802,58227.0,58221.0,0.35720559]
[1617559627943,0.04672802,58227.0,58223.0,0.26]
[1617559628142,0.04672802,58227.0,58223.0,0.15456]
[1617559628551,0.04672802,58227.0,58223.0,0.41456]
[1617559629244,0.04672802,58227.0,58224.0,0.35708647]
[1617559629643,0.04672802,58227.0,58225.0,0.62703078]
[1617559629947,0.04672802,58227.0,58226.0,0.10725655]
[1617559630145,0.04672802,58227.0,58226.0,0.5247919]
[1617559630345,0.04672802,58227.0,58226.0,0.7947919]
[1617559630946,0.04672802,58227.0,58226.0,0.43778557]
[1617559632147,0.4613,58231.0,58226.0,0.33052902]
[1617559632348,0.4613,58231.0,58226.0,0.6875342]
[1617559632651,0.4613,58231.0,58230.0,0.10725655]
[1617559633055,0.4613,58231.0,58230.0,0.37725655]
[1617559634749,0.56855655,58231.0,58230.0,0.37725655]
[1617559635152,0.56855655,58231.0,58230.0,0.73393887]
[1617559644160,0.56855655,58231.0,58230.0,0.85472887]
[1617559645963,0.56855655,58231.0,58230.0,0.73393887]
[1617559648267,0.56855655,58231.0,58230.0,0.73397908]
[1617559649066,0.56855655,58231.0,58230.0,0.37725655]
[1617559650367,0.56855655,58231.0,58230.0,0.73420528]
[1617559653172,0.56855655,58231.0,58230.0,0.37725655]
[1617559653772,0.56855655,58231.0,58230.0,0.27]
[1617559654371,0.56855655,58231.0,58228.0,0.35727674]
[1617559654571,0.56855655,58231.0,58223.0,0.35763791]
[1617559654572,2.01080465,58231.0,58223.0,0.35763791]
[1617559654771,1.9035481,58231.0,58230.0,0.01]
[1617559654971,1.4613,58231.0,58226.0,0.27]
[1617559655172,1.4613,58231.0,58224.0,0.01]
[1617559655373,0.90356096,58231.0,58230.0,0.26]
[1617559655571,0.90356096,58231.0,58227.0,0.27]
[1617559655773,0.90356096,58231.0,58224.0,0.02]
[1617559655972,1.0,58228.0,58223.0,0.25]
[1617559656173,1.0,58228.0,58221.0,0.35780612]
[1617559656174,1.0,58228.0,58225.0,0.01]
[1617559656375,1.44228047,58228.0,58225.0,0.01]
[1617559656575,1.44228047,58228.0,58224.0,0.27]
[1617559656774,0.10725655,58225.0,58221.0,0.25]
[1617559656975,0.10725655,58225.0,58223.0,0.02]
[1617559657274,0.10725655,58225.0,58221.0,0.25]
[1617559657275,0.10725655,58225.0,58220.0,0.10725655]
[1617559657476,0.54954973,58225.0,58222.0,0.26]
[1617559657675,0.54954973,58225.0,58224.0,0.03]
[1617559657876,0.54954973,58225.0,58220.0,0.10725655]
[1617559658075,1.0,58223.0,58221.0,0.25]
[1617559658277,1.0,58224.0,58221.0,0.25]
[1617559658478,1.0,58224.0,58220.0,0.10725655]
[1617559658677,0.54954973,58225.0,58221.0,0.27]
[1617559658880,0.10725655,58225.0,58221.0,0.27]
[1617559659078,0.10725655,58225.0,58221.0,0.37612]
[1617559659278,0.10725655,58225.0,58222.0,0.06053654]
[1617559659679,0.10725655,58225.0,58223.0,0.27]
[1617559660078,0.10725655,58225.0,58224.0,0.06053418]
[1617559660677,0.10725655,58225.0,58224.0,0.07053418]
[1617559660879,0.10725655,58225.0,58224.0,0.01]
[1617559661478,0.10725655,58225.0,58224.0,0.42872241]
[1617559661878,0.10725655,58225.0,58224.0,0.41872241]
[1617559662279,0.10725655,58225.0,58224.0,0.62818776]
[1617559662680,0.55017435,58225.0,58224.0,0.68872225]
[1617559663483,0.55017435,58225.0,58224.0,0.33053449]
[1617559663881,0.55017435,58225.0,58224.0,0.27]
[1617559664281,0.55017435,58225.0,58222.0,0.01]
[1617559664483,1.66954435,58225.0,58222.0,0.01]
[1617559664683,1.66954435,58225.0,58224.0,0.26]
[1617559664883,1.66954435,58225.0,58215.0,0.43818369]
[1617559664884,1.22662655,58225.0,58221.0,0.01]
[1617559665184,2.17291188,58225.0,58224.0,0.26]
[1617559665583,1.0,58222.0,58220.0,0.27]
[1617559665784,2.17291188,58225.0,58224.0,0.26]
[1617559666184,2.17291188,58225.0,58221.0,0.26]
[1617559666383,2.17291188,58225.0,58224.0,0.27]
[1617559666584,1.22662655,58225.0,58224.0,0.27]
[1617559666784,1.22662655,58225.0,58219.0,0.01]
[1617559666984,1.22662655,58225.0,58218.0,0.358618]
[1617559666985,2.17291238,58225.0,58224.0,0.27]
[1617559667284,2.17291238,58225.0,58219.0,0.27]
[1617559667685,2.17291238,58225.0,58224.0,0.27]
[1617559667885,2.17291238,58225.0,58218.0,0.358618]
[1617559668085,2.17291238,58225.0,58219.0,0.27]
[1617559668387,0.5033411,58224.0,58219.0,0.27]
[1617559668790,0.44295582,58220.0,58219.0,0.27]
[1617559669189,0.44295582,58220.0,58218.0,0.01]
[1617559669588,0.44295582,58220.0,58219.0,0.26]
[1617559669790,0.5033411,58224.0,58218.0,0.27]
[1617559670189,0.44248825,58220.0,58218.0,0.27]
[1617559670589,0.44248825,58220.0,58215.0,0.35819697]
[1617559670988,0.44248825,58220.0,58216.0,0.26]
[1617559671788,0.44229992,58221.0,58216.0,0.26]
[1617559672289,0.11937,58225.0,58214.0,0.35803922]
[1617559672290,0.44230235,58220.0,58214.0,0.35803922]
[1617559672489,1.0,58218.0,58214.0,0.35803922]
[1617559672689,1.0,58218.0,58215.0,0.26]
[1617559672890,0.10725655,58216.0,58215.0,0.26]
[1617559674491,0.26475655,58216.0,58215.0,0.61800244]
[1617559674893,0.26475655,58216.0,58215.0,0.35800244]
[1617559675093,0.26475655,58216.0,58214.0,0.3581379]
[1617559675291,0.26475655,58216.0,58215.0,0.26]
[1617559675492,0.26475655,58216.0,58213.0,0.35816277]
[1617559675892,0.26475655,58216.0,58215.0,0.27]
[1617559676093,0.26475655,58216.0,58214.0,0.01]
[1617559676293,0.26475655,58216.0,58213.0,0.35816277]
[1617559676495,0.26475655,58216.0,58215.0,0.27]
[1617559676693,0.26475655,58216.0,58213.0,0.35816277]
[1617559676694,0.26475655,58216.0,58214.0,0.27]
[1617559678999,0.26475655,58216.0,58213.0,0.01]
[1617559679898,0.26475655,58216.0,58213.0,0.36812004]
[1617559680299,0.26475655,58216.0,58209.0,0.54495882]
[1617559680300,0.26475655,58216.0,58215.0,0.35800347]
[1617559680697,0.10725655,58216.0,58215.0,0.36800347]
[1617559680898,0.44229766,58222.0,58215.0,0.36800347]
[1617559681096,0.44229766,58222.0,58221.0,0.10725655]
[1617559681298,0.10725655,58223.0,58221.0,0.10725655]
[1617559681497,0.10725655,58223.0,58221.0,0.37725655]
[1617559684701,0.10725655,58223.0,58221.0,0.52880655]
[1617559684901,0.4613,58231.0,58222.0,3.1883]
[1617559685101,0.63153824,58231.0,58230.0,0.10725655]
[1617559685502,0.4613,58231.0,58230.0,0.11725655]
[1617559686907,0.90353551,58231.0,58230.0,0.11725655]
[1617559687303,0.4613,58231.0,58230.0,0.11725655]
[1617559694016,0.4613,58231.0,58230.0,0.24174655]
[1617559694817,0.4613,58231.0,58230.0,0.21674655]
[1617559697124,0.4613,58231.0,58230.0,0.57188499]
[1617559697725,0.4613,58231.0,58230.0,0.21674655]
[1617559698223,0.4613,58231.0,58230.0,0.57181226]
[1617559700228,0.4613,58231.0,58230.0,0.21674655]
[1617559700425,0.4613,58231.0,58230.0,0.09225655]
[1617559700625,0.58871,58231.0,58230.0,0.09225655]
[1617559703531,0.4613,58231.0,58230.0,0.09225655]
[1617559706133,0.60263,58231.0,58230.0,0.09225655]
[1617559712743,0.60263,58231.0,58230.0,0.01]
[1617559713645,0.60263,58231.0,58230.0,0.07052718]
[1617559714442,5.07953,58231.0,58230.0,0.07052718]
[1617559714643,5.07953,58231.0,58230.0,0.01]
[1617559715043,6.19379613,58231.0,58228.0,0.26]
[1617559715345,6.19379613,58231.0,58230.0,0.01]
[1617559715549,5.07953,58231.0,58230.0,0.01]
[1617559715748,5.13043,58231.0,58218.0,0.35542573]
[1617559715947,6.07584248,58231.0,58218.0,0.35542573]
[1617559716146,6.02494248,58231.0,58230.0,0.01]
[1617559716346,6.02494248,58231.0,58218.0,0.35542573]
[1617559716547,1.0,58220.0,58219.0,0.27]
[1617559716747,0.44254214,58223.0,58219.0,0.27]
[1617559716948,0.44254747,58222.0,58217.0,0.3554466]
[1617559717148,0.44254747,58222.0,58219.0,0.27]
[1617559717349,0.10725655,58220.0,58219.0,0.27]
[1617559717552,1.0,58218.0,58214.0,0.62561567]
[1617559717749,0.11,58218.0,58216.0,0.26]
[1617559718151,1.55255749,58218.0,58215.0,0.27]
[1617559718352,1.55255749,58218.0,58213.0,0.35553369]
[1617559718550,1.55255749,58218.0,58208.0,0.43454117]
[1617559718551,1.11,58218.0,58214.0,0.35540808]
[1617559718750,1.11,58218.0,58216.0,0.01]
[1617559718952,1.11,58218.0,58213.0,0.35536259]
[1617559719151,1.11,58218.0,58215.0,0.27]
[1617559719350,1.11,58218.0,58217.0,0.27]
[1617559719550,1.11,58218.0,58214.0,0.35511952]
[1617559719751,1.11,58218.0,58216.0,0.01]
[1617559720151,1.11,58218.0,58215.0,0.62498761]
[1617559720552,0.11,58218.0,58216.0,0.01]
[1617559720752,0.10725655,58220.0,58216.0,0.01]
[1617559721152,0.10725655,58220.0,58216.0,0.36475646]
[1617559721351,0.10725655,58220.0,58216.0,0.47201301]
[1617559721552,0.10725655,58220.0,58219.0,0.35439448]
[1617559721952,0.10725655,58220.0,58219.0,0.36439448]
[1617559722153,0.10725655,58220.0,58219.0,0.7974614]
[1617559722453,0.10725655,58220.0,58219.0,0.85799247]
[1617559726995,3.66645655,58220.0,58219.0,0.85799247]
[1617559727184,3.81248655,58220.0,58219.0,0.85799247]
[1617559727564,3.81248655,58220.0,58219.0,0.07053107]
[1617559727762,4.81248655,58220.0,58219.0,0.07053107]
[1617559727964,4.81248655,58220.0,58219.0,0.01]
[1617559728364,4.81248655,58220.0,58216.0,0.26]
[1617559728668,4.81248655,58220.0,58216.0,0.61440209]
[1617559729066,4.81248655,58220.0,58216.0,0.35440209]
[1617559729366,4.81248655,58220.0,58217.0,0.27]
[1617559729766,1.0,58219.0,58217.0,0.27]
[1617559730368,1.0,58219.0,58214.0,0.35456589]
[1617559730767,1.0,58219.0,58218.0,0.01]
[1617559730968,1.0,58219.0,58214.0,0.35456589]
[1617559731368,1.0,58219.0,58216.0,0.27]
[1617559731569,1.0,58219.0,58215.0,0.27]
[1617559731769,1.0,58219.0,58214.0,0.35456589]
[1617559732169,1.0,58219.0,58215.0,0.27]
[1617559733773,1.0,58219.0,58214.0,0.01]
[1617559734172,1.0,58218.0,58216.0,0.26]
[1617559734373,1.0,58218.0,58214.0,0.27]
[1617559734974,1.0,58217.0,58212.0,0.01]
[1617559735374,0.44240367,58217.0,58215.0,0.27]
[1617559735574,1.0,58216.0,58212.0,0.27]
[1617559735773,0.44240367,58217.0,58212.0,0.27]
[1617559735973,0.44240367,58217.0,58216.0,0.01]
[1617559736174,1.0,58219.0,58211.0,0.35471972]
[1617559736175,0.4423948,58218.0,58211.0,0.35471972]
[1617559736375,0.4423948,58218.0,58213.0,0.27]
[1617559736575,0.4423948,58218.0,58216.0,0.01]
[1617559736774,0.4423948,58218.0,58211.0,0.35471972]
[1617559736977,4.14760939,58220.0,58214.0,0.26]
[1617559737175,4.14760939,58220.0,58213.0,0.6246294]
[1617559737376,4.14760939,58220.0,58213.0,0.3546294]
[1617559737575,4.14760939,58220.0,58208.0,0.43343593]
[1617559737576,0.10725655,58214.0,58209.0,0.43338253]
[1617559737976,0.10725655,58214.0,58213.0,0.3546338]
[1617559738375,0.10725655,58214.0,58213.0,0.6246338]
[1617559738776,0.10725655,58214.0,58213.0,0.68517244]
[1617559740877,0.10725655,58214.0,58213.0,1.11859305]
[1617559751688,0.10725655,58214.0,58213.0,1.61054311]
[1617559752388,0.10725655,58214.0,58213.0,4.46174311]
[1617559752587,0.10725655,58214.0,58213.0,4.04657067]
[1617559752788,0.10725655,58214.0,58213.0,4.40078322]
[1617559753289,0.10725655,58214.0,58213.0,4.49157896]
[1617559760403,0.10725655,58214.0,58213.0,1.64037896]
[1617559760803,2.80205655,58214.0,58213.0,1.64037896]
[1617559761303,2.80205655,58214.0,58213.0,1.54958322]
[1617559773817,2.80205655,58214.0,58213.0,1.74958322]
[1617559774023,2.80205655,58214.0,58213.0,1.54958322]
[1617559774818,2.80205655,58214.0,58213.0,1.60138322]
[1617559775019,2.80205655,58214.0,58213.0,1.54958322]
[1617559778021,2.80205655,58214.0,58213.0,1.60108322]
[1617559778220,2.94924655,58214.0,58213.0,1.54958322]
[1617559779922,2.80205655,58214.0,58213.0,1.54958322]
[1617559780925,0.10725655,58214.0,58213.0,1.54958322]
[1617559781127,0.10725655,58214.0,58213.0,4.42309322]
[1617559781327,0.10725655,58214.0,58213.0,5.42309322]
[1617559781527,0.44301418,58228.0,58213.0,5.42309322]
[1617559781728,0.44300988,58229.0,58226.0,0.10725655]
[1617559781927,0.44300988,58229.0,58226.0,0.25686655]
[1617559782126,0.44300988,58229.0,58227.0,0.27]
[1617559782328,0.4430092,58230.0,58228.0,0.35492642]
[1617559782727,0.9043059,58231.0,58229.0,0.62485295]
[1617559783328,0.9043059,58231.0,58229.0,0.68538107]
[1617559783728,0.9043059,58231.0,58230.0,0.41538853]
[1617559784129,0.9043059,58231.0,58230.0,0.33052806]
[1617559785830,1.01156245,58231.0,58230.0,0.33052806]
[1617559786131,1.01156245,58231.0,58230.0,0.27]
[1617559786635,1.01156245,58231.0,58229.0,0.36491892]
[1617559787035,0.43315687,58230.0,58229.0,0.35491892]
[1617559787532,0.43315687,58230.0,58229.0,0.62491892]
[1617559791938,1.43315687,58230.0,58229.0,0.62491892]
[1617559792139,1.43315687,58230.0,58229.0,0.27]
[1617559792538,1.43315687,58230.0,58228.0,0.35519996]
[1617559792539,1.6106576,58230.0,58228.0,0.35519996]
[1617559792837,1.6106576,58230.0,58229.0,0.27]
[1617559793038,1.0,58230.0,58229.0,0.27]
[1617559793541,1.17750213,58230.0,58228.0,0.01]
[1617559793739,1.17750213,58230.0,58229.0,0.26]
[1617559794140,1.17750213,58230.0,58228.0,0.27]
[1617559794339,1.17750213,58230.0,58229.0,0.27]
[1617559794639,1.17750213,58230.0,58227.0,0.35525514]
[1617559794840,1.17750213,58230.0,58228.0,0.27]
[1617559796142,1.1218,58229.0,58228.0,0.27]
[1617559796743,1.1218,58229.0,58225.0,0.35532474]
[1617559796942,1.1218,58229.0,58217.0,0.27]
[1617559796943,1.62549087,58229.0,58221.0,0.35562666]
[1617559797143,1.62549087,58229.0,58228.0,0.01]
[1617559797343,2.7814,58229.0,58222.0,0.01]
[1617559797542,2.7814,58229.0,58227.0,0.26]
[1617559797944,2.7814,58229.0,58220.0,0.27]
[1617559798145,0.50357327,58226.0,58220.0,0.62543578]
[1617559798343,0.0514,58225.0,58220.0,0.35543578]
[1617559798544,0.50357506,58225.0,58221.0,0.27]
[1617559798943,0.50357506,58225.0,58219.0,0.35548433]
[1617559798944,0.50357541,58224.0,58220.0,0.01]
[1617559799244,0.50357541,58224.0,58222.0,0.27]
[1617559799643,0.50357541,58224.0,58220.0,0.27]
[1617559799843,0.10725655,58221.0,58220.0,0.27]
[1617559800044,0.10725655,58221.0,58219.0,0.01]
[1617559800245,0.10725655,58221.0,58220.0,0.27]
[1617559800646,0.10725655,58221.0,58219.0,0.27]
[1617559800847,0.10725655,58221.0,58209.0,0.10725655]
[1617559800848,0.10725655,58221.0,58220.0,0.62537274]
[1617559801249,0.10725655,58221.0,58220.0,0.35537274]
[1617559801447,0.10725655,58221.0,58220.0,0.62537274]
[1617559803448,2.86155655,58221.0,58220.0,0.62537274]
[1617559803649,4.3652976,58221.0,58220.0,0.27]
[1617559804049,4.3652976,58221.0,58216.0,0.01]
[1617559804050,4.69898733,58221.0,58216.0,0.01]
[1617559804448,0.2,58220.0,58211.0,0.35583691]
[1617559804652,1.50376329,58217.0,58212.0,0.26]